bitfinex/quotes_ETHUSD_20250319
["timestamp","ask_amount","ask_price","bid_price","bid_amount"]
[1742394865429,6.3565,2029.1,2028.9,4.92866]
[1742394865775,3.0,2029.0,2028.8,4.929]
[1742394865984,12.48337884,2029.0,2028.7,4.92921]
[1742394866277,3.0,2029.0,2028.8,4.92899]
[1742394866482,12.48330884,2029.0,2028.6,4.92938]
[1742394866633,17.41205884,2029.0,2028.6,4.92938]
[1742394866829,7.55477884,2029.0,2028.3,5.551]
[1742394867026,3.0,2029.0,2028.8,4.92879]
[1742394867330,6.3565,2029.1,2029.0,4.92853]
[1742394867529,6.3565,2029.1,2028.9,9.85736]
[1742394867730,6.3565,2029.1,2029.0,4.92853]
[1742394867931,0.8055,2029.1,2029.0,4.92853]
[1742394868156,0.7793,2029.3,2029.1,4.92827]
[1742394868360,0.7793,2029.5,2028.8,4.92881]
[1742394868580,0.7793,2029.5,2029.4,4.92756]
[1742394868885,3.0,2029.6,2029.5,4.92725]
[1742394869085,3.0,2029.6,2029.4,4.92755]
[1742394869285,3.0,2029.6,2029.1,4.92829]
[1742394869470,10.10577884,2029.7,2029.4,4.92747]
[1742394869666,4.55477884,2029.5,2029.2,4.92804]
[1742394869869,10.10577884,2029.7,2029.4,4.92756]
[1742394870042,10.10577884,2029.7,2029.5,4.92716]
[1742394870243,10.10577884,2029.7,2029.4,4.92756]
[1742394872980,4.55477884,2028.7,2028.4,4.92982]
[1742394873174,10.47784,2028.9,2028.4,4.92982]
[1742394873175,3.0,2028.8,2028.5,4.92961]
[1742394873397,4.55477884,2028.7,2028.4,4.92998]
[1742394873698,3.8156,2028.8,2028.4,4.92999]
[1742394873899,0.8156,2029.0,2028.8,4.92902]
[1742394874100,3.8156,2029.0,2028.8,4.92902]
[1742394874300,0.8156,2029.0,2028.8,4.92902]
[1742394874647,5.37037884,2029.0,2028.8,4.929]
[1742394875106,0.8156,2029.0,2028.9,4.92877]
[1742394875765,0.8156,2029.0,2028.8,4.929]
[1742394875948,0.8156,2029.0,2028.7,4.92917]
[1742394875949,5.37037884,2029.0,2028.7,4.92917]
[1742394876150,10.03388884,2028.8,2028.2,0.827]
[1742394876385,5.32937884,2028.6,2028.3,4.93014]
[1742394876596,5.32937884,2028.6,2028.2,4.93032]
[1742394876746,5.32937884,2028.6,2028.2,9.86065]
[1742394876747,10.25900884,2028.6,2028.2,9.86065]
[1742394876951,3.0,2028.7,2028.6,4.9295]
[1742394877184,0.7829,2029.0,2028.6,4.92932]
[1742394877394,0.7829,2029.0,2028.7,4.92911]
[1742394877612,0.7829,2029.0,2028.8,4.92891]
[1742394877892,0.7829,2029.0,2028.8,4.92883]
[1742394878194,0.7829,2029.0,2028.9,4.92877]
[1742394878401,0.8043,2029.3,2029.2,4.92805]
[1742394878615,0.8103,2029.7,2029.6,4.92707]
[1742394878818,0.8103,2029.7,2028.8,5.35307884]
[1742394878819,0.8103,2029.9,2029.8,4.92659]
[1742394879171,2.4e-06,2030.1,2030.0,4.9261]
[1742394881072,2.4e-06,2030.1,2030.0,12.52927304]
[1742394881273,2.4e-06,2030.1,2030.0,12.48087884]
[1742394881484,2.4e-06,2030.1,2030.0,13.26017884]
[1742394881872,2.4e-06,2030.1,2030.0,13.81017884]
[1742394883175,2.4e-06,2030.1,2030.0,9.2554]
[1742394883376,2.4e-06,2030.1,2030.0,8.7054]
[1742394885080,2.4e-06,2030.1,2030.0,14.62584487]
[1742394885437,2.4e-06,2030.1,2030.0,11.62584487]
[1742394885775,2.4e-06,2030.1,2030.0,14.62584487]
[1742394887429,2.4e-06,2030.1,2030.0,4.9261]
[1742394891740,2.4e-06,2030.1,2030.0,5.73971119]
[1742394892095,2.4e-06,2030.1,2030.0,11.2343]
[1742394892835,2.4e-06,2030.1,2030.0,14.7843]
[1742394895228,2.4e-06,2030.1,2030.0,19.9803]
[1742394895425,0.7988,2031.3,2031.2,4.92319]
[1742394899233,0.7988,2031.3,2031.1,4.92335]
[1742394899430,0.7988,2031.3,2031.1,4.9234]
[1742394899848,4.9233,2031.2,2030.8,4.92407]
[1742394900048,4.92394,2030.9,2030.6,4.92463]
[1742394900260,3.0,2030.9,2030.6,4.92455]
[1742394900623,3.0,2030.9,2030.5,4.92489]
[1742394900829,7.92394,2030.9,2030.5,4.92478]
[1742394901028,4.92418,2030.8,2030.4,4.92506]
[1742394901253,7.92395,2030.9,2030.1,10.82712799]
[1742394901456,7.92395,2030.9,2030.7,4.92419]
[1742394901457,3.0,2030.9,2030.7,4.92419]
[1742394901765,3.0,2031.1,2030.9,4.92392]
[1742394901942,3.0,2031.1,2030.9,4.92378]
[1742394902143,3.0,2031.1,2031.0,4.92368]
[1742394902457,0.01,2031.4,2031.3,4.92295]
[1742394903817,0.01,2031.4,2031.2,4.92317]
[1742394903818,0.01,2031.4,2031.2,4.92309]
[1742394904054,0.01,2031.4,2031.3,4.92295]
[1742394904927,0.01,2031.4,2031.3,4.97128932]
[1742394905151,0.01,2031.4,2031.3,4.97127709]
[1742394905540,1e-05,2031.4,2031.3,8.88696742]
[1742394905744,1e-05,2031.4,2031.3,8.83864033]
[1742394906451,1e-05,2031.4,2031.3,14.03464033]
[1742394906752,2.4e-06,2032.1,2032.0,7.92125]
[1742394906949,2.4e-06,2032.1,2032.0,14.00925]
[1742394907322,2.4e-06,2032.1,2032.0,23.92957687]
[1742394907525,9.83408,2033.8,2033.3,4.91794]
[1742394907733,4.91758,2033.6,2033.1,4.91839]
[1742394907951,3.0,2033.4,2032.9,4.91893]
[1742394908136,4.72432687,2033.5,2032.6,4.91959]
[1742394908331,4.91919,2032.9,2032.4,4.92016]
[1742394908559,3.491919,2032.8,2032.4,4.92016]
[1742394908862,5.411449,2032.8,2032.4,4.92012]
[1742394909058,3.491919,2032.8,2032.7,4.91956]
[1742394909358,3.491919,2032.8,2032.5,4.91991]
[1742394909567,3.491919,2032.8,2032.0,5.538]
[1742394909737,0.8411229,2032.7,2032.4,4.92016]
[1742394909937,0.8411229,2032.7,2032.4,4.92026]
[1742394910154,0.8411229,2032.7,2032.0,5.538]
[1742394910461,0.8411229,2032.7,2032.4,4.9201]
[1742394911136,0.8411229,2032.7,2032.3,4.92053]
[1742394911137,5.7608429,2032.7,2032.3,4.92053]
[1742394911452,0.8411229,2032.7,2032.3,4.9203]
[1742394911650,4.9201,2032.5,2032.1,4.92077]
[1742394911830,3.8411229,2032.7,2032.3,4.92042]
[1742394912025,8.7606829,2032.7,2032.3,4.92042]
[1742394912279,1.41720619,2032.6,2032.2,4.92077]
[1742394912562,6.33711619,2032.6,2032.1,4.92095]
[1742394913062,4.92036,2032.4,2032.0,4.92125]
[1742394913230,4.92006,2032.5,2032.0,4.92102]
[1742394913431,4.92039,2032.4,2032.0,4.92102]
[1742394913656,9.8409,2032.4,2032.0,4.92102]
[1742394913846,4.92088,2032.2,2031.8,4.92154]
[1742394914051,4.92053,2032.3,2031.9,4.92139]
[1742394914262,4.92077,2032.2,2031.8,4.9217]
[1742394914463,4.92111,2032.1,2031.6,4.92198]
[1742394914682,0.98413,2032.2,2031.8,4.92151]
[1742394914882,0.98413,2032.2,2031.5,17.019]
[1742394914883,3.0,2032.4,2032.1,4.92091]
[1742394915178,5.534,2032.5,2032.2,9.8413]
[1742394915360,5.534,2032.6,2032.1,4.92101]
[1742394915555,1.045357,2032.5,2032.2,4.92068]
[1742394915757,5.534,2032.8,2032.1,4.92101]
[1742394915954,5.534,2032.8,2032.7,4.91956]
[1742394916158,10.4527,2033.1,2032.7,4.91945]
[1742394916365,10.4527,2033.1,2032.8,9.83852]
[1742394916366,7.54351469,2033.1,2032.8,9.83852]
[1742394916571,5.534,2033.1,2032.9,4.91905]
[1742394916778,4.91752,2033.6,2033.1,4.9184]
[1742394916949,5.534,2033.7,2033.0,4.91864]
[1742394917285,4.91826,2033.3,2032.8,4.91931]
[1742394917465,4.91844,2033.2,2032.8,4.91931]
[1742394917662,0.98367,2033.2,2032.8,4.91914]
[1742394917860,3.0,2033.3,2033.0,4.91867]
[1742394918058,3.0,2033.3,2032.9,4.91907]
[1742394918269,3.0,2033.3,2032.7,4.91954]
[1742394918270,3.0,2033.1,2032.7,4.91934]
[1742394918479,7.9186,2033.1,2032.7,4.91934]
[1742394918682,3.0,2033.1,2032.8,4.9193]
[1742394918880,9.7557,2033.1,2032.6,4.91975]
[1742394919081,3.0,2033.1,2032.5,4.91988]
[1742394919282,4.91942,2032.8,2032.4,4.92027]
[1742394919489,4.91982,2032.6,2032.2,4.92056]
[1742394919685,0.983947,2032.5,2032.2,4.92056]
[1742394919854,3.0,2032.8,2032.4,4.92015]
[1742394920055,4.91957,2032.7,2032.2,4.92075]
[1742394920264,4.91957,2032.7,2032.3,4.9205]
[1742394920465,7.9202,2032.5,2032.1,4.921]
[1742394920679,7.9202,2032.5,2031.8,5.533]
[1742394920881,13.45207,2032.5,2032.2,4.92074]
[1742394921085,15.76169669,2032.5,2032.1,4.92094]
[1742394921269,4.92043,2032.4,2031.9,4.92139]
[1742394921470,4.92043,2032.4,2031.9,4.92136]
[1742394921675,4.92043,2032.4,2032.0,4.92116]
[1742394922283,4.92062,2032.3,2031.9,4.92136]
[1742394922471,4.92062,2032.3,2031.9,4.92146]
[1742394922677,4.92039,2032.4,2032.0,4.92117]
[1742394922888,6.96902436,2032.4,2032.0,4.92117]
[1742394923096,6.96902436,2032.4,2032.0,4.92111]
[1742394923286,2.04863436,2032.4,2032.1,4.92099]
[1742394923459,6.96893436,2032.4,2032.1,4.92099]
[1742394923675,2.04863436,2032.4,2031.8,4.92161]
[1742394923864,10.70301031,2032.3,2031.6,17.013]
[1742394924087,4.92043,2032.4,2032.0,4.92107]
[1742394924391,4.92043,2032.4,2032.0,4.92117]
[1742394924585,4.92043,2032.4,2032.0,4.92108]
[1742394925091,13.45205,2032.5,2031.7,4.92198]
[1742394925092,5.532,2032.5,2031.9,4.9215]
[1742394925297,10.45209,2032.5,2032.0,4.92109]
[1742394925461,4.92038,2032.4,2032.0,4.92109]
[1742394926696,4.92096,2032.2,2031.7,4.92174]
[1742394926878,4.92112,2032.1,2031.7,4.92174]
[1742394927595,4.92112,2032.1,2031.6,4.92218]
[1742394927596,4.92138,2032.0,2031.6,4.92218]
[1742394927800,4.92138,2032.0,2030.6,4.92457]
[1742394927801,0.06151645,2031.9,2030.6,4.92457]
[1742394928000,3.0,2031.6,2030.6,5.531]
[1742394928298,4.92379,2031.0,2030.6,4.92456]
[1742394928511,10.25532687,2031.1,2030.3,4.92538]
[1742394928746,5.531,2031.1,2030.6,4.92462]
[1742394929040,4.72432687,2031.4,2030.4,0.0483879]
[1742394929041,4.9228,2031.4,2031.0,4.92368]
[1742394929343,3.0,2031.4,2031.0,4.92352]
[1742394929545,8.532,2031.6,2031.5,4.92247]
[1742394929704,3.0,2031.6,2031.3,4.92273]
[1742394929890,3.0,2031.6,2030.8,5.532]
[1742394930090,7.92225,2031.6,2031.2,4.9231]
[1742394930324,10.23230769,2031.6,2031.2,4.9231]
[1742394930534,15.15473769,2031.6,2031.2,4.9231]
[1742394930712,5.31005769,2031.6,2031.3,4.92295]
[1742394930918,3.0,2031.6,2031.3,4.92295]
[1742394931126,5.532,2031.8,2030.9,7.92392]
[1742394931324,5.532,2031.8,2031.6,4.92206]
[1742394931529,8.532,2031.8,2031.6,4.92206]
[1742394931737,9.64496687,2032.3,2031.5,4.92247]
[1742394931905,10.45284,2032.2,2031.3,4.97113623]
[1742394932109,10.45284,2032.2,2031.8,4.92168]
[1742394932508,10.45284,2032.2,2031.8,4.92162]
[1742394932839,4.72432687,2032.0,2030.9,7.92379]
[1742394933015,9.64566687,2032.0,2031.6,4.9222]
[1742394933215,0.12122391,2031.9,2031.6,9.84427]
[1742394933442,0.12122391,2031.9,2031.8,4.92174]
[1742394933653,26.66013687,2032.6,2032.0,4.92125]
[1742394933867,5.532,2032.4,2032.2,4.92066]
[1742394934153,0.24863652,2033.2,2032.3,0.04829643]
[1742394934154,5.532,2033.1,2032.3,0.04829643]
[1742394934317,5.532,2033.1,2032.1,4.92101]
[1742394934318,4.91902,2033.0,2032.5,4.91991]
[1742394934521,4.91918,2032.9,2032.5,4.91991]
[1742394934718,1.51753469,2033.0,2032.6,4.91957]
[1742394935024,1.51753469,2033.0,2032.2,10.45271]
[1742394935025,6.43648469,2033.0,2032.5,4.91992]
[1742394935249,4.9194,2032.8,2032.4,4.92028]
[1742394935553,4.91839,2033.2,2032.7,4.91937]
[1742394935554,4.72432687,2033.2,2032.7,4.91937]
[1742394935751,7.91876,2033.1,2032.7,4.91937]
[1742394935967,4.91886,2033.0,2032.7,4.91937]
[1742394936188,4.91908,2032.9,2032.5,9.83974]
[1742394936456,15.17368687,2033.2,2032.7,4.91946]
[1742394936629,16.69105556,2033.2,2032.7,4.91937]
[1742394936824,7.91875,2033.1,2032.7,4.91937]
[1742394937030,3.0,2033.1,2032.7,4.91937]
[1742394937227,3.0,2033.1,2032.8,9.83833]
[1742394937557,3.0,2033.1,2032.4,4.92026]
[1742394937558,3.0,2033.1,2032.9,4.91896]
[1742394937728,3.0,2033.1,2032.9,4.91892]
[1742394937926,4.91893,2033.0,2032.2,4.92058]
[1742394938140,9.8385,2032.9,2032.4,4.92007]
[1742394938326,4.92014,2032.5,2031.8,4.92155]
[1742394938525,4.92004,2032.5,2031.7,4.92198]
[1742394938734,10.45008,2032.5,2032.0,4.92115]
[1742394938934,11.96752069,2032.5,2032.1,4.92098]
[1742394939261,9.84094,2032.4,2032.0,4.92116]
[1742394939438,4.92047,2032.4,2032.0,4.92116]
[1742394939641,4.92112,2032.1,2031.7,4.92177]
[1742394939840,9.64558687,2032.0,2031.5,4.92246]
[1742394940039,4.9217,2031.9,2031.4,4.92258]
[1742394940360,3.0,2031.6,2031.2,4.92304]
[1742394940564,3.0,2031.6,2031.3,4.92284]
[1742394940773,3.0,2031.7,2031.4,4.92269]
[1742394941073,4.92233,2031.6,2031.1,4.92322]
[1742394941252,4.92233,2031.6,2031.0,4.92353]
[1742394941458,4.92167,2031.9,2031.4,4.92259]
[1742394941763,3.0,2031.8,2031.5,4.92227]
[1742394941965,3.0,2031.8,2031.2,4.92302]
[1742394942265,3.0,2031.8,2031.1,4.92321]
[1742394942266,4.92258,2031.5,2031.1,5.53]
[1742394942433,9.84478,2031.6,2031.0,4.9235]
[1742394942636,4.92237,2031.6,2031.1,4.92336]
[1742394942966,0.10349838,2031.5,2031.1,4.92336]
[1742394943166,5.02596838,2031.5,2031.0,4.92363]
[1742394943365,5.02596838,2031.5,2031.0,9.84712]
[1742394943563,4.92309,2031.3,2030.8,21.93696]
[1742394943786,0.10274732,2031.2,2031.0,4.92356]
[1742394943951,3.0,2031.6,2031.2,4.9231]
[1742394944151,3.0,2031.6,2031.3,9.84553]
[1742394944368,0.10276091,2031.5,2031.2,4.92319]
[1742394944651,0.10276091,2031.5,2031.2,4.92304]
[1742394944856,0.10276091,2031.5,2031.4,4.92271]
[1742394945057,13.4506,2031.9,2031.5,4.92236]
[1742394945256,0.10395922,2031.8,2031.4,9.84526]
[1742394945458,5.529,2031.9,2031.3,4.92295]
[1742394945657,4.92199,2031.7,2031.3,4.9229]
[1742394945856,5.02586479,2031.8,2031.3,4.9229]
[1742394946068,0.10359522,2031.6,2031.3,4.9229]
[1742394946268,4.92255,2031.5,2031.1,4.92334]
[1742394946583,0.09961032,2031.4,2031.1,4.92334]
[1742394946789,0.09961032,2031.4,2031.0,10.45356]
[1742394946953,4.92323,2031.2,2030.8,4.92406]
[1742394947153,0.09946815,2031.1,2030.9,4.92392]
[1742394947485,4.92374,2031.0,2030.6,4.92449]
[1742394947890,5.02275975,2030.9,2030.5,4.92483]
[1742394948089,4.92434,2030.8,2030.4,4.92508]
[1742394948260,6.01746973,2030.9,2030.5,4.92476]
[1742394948460,4.92426,2030.8,2030.4,4.92508]
[1742394948764,4.92426,2030.8,2030.2,4.92556]
[1742394948765,0.09781641,2030.7,2030.2,4.92556]
[1742394949069,5.02233641,2030.7,2030.3,4.92523]
[1742394949269,0.09781641,2030.7,2030.3,4.92523]
[1742394949458,5.02222641,2030.7,2030.3,4.92523]
[1742394950177,0.09781641,2030.7,2030.4,4.92509]
[1742394950377,0.09781641,2030.7,2030.3,4.92523]
[1742394950579,0.09781641,2030.7,2030.3,9.8505]
[1742394950888,0.09781641,2030.7,2030.2,4.92558]
[1742394951097,4.92519,2030.4,2030.0,4.92605]
[1742394951460,0.09486358,2030.3,2029.9,4.92616]
[1742394951794,5.02026358,2030.3,2029.9,4.92616]
[1742394951973,5.02026358,2030.3,2029.9,9.85239]
[1742394952172,0.09486358,2030.3,2029.9,9.85232]
[1742394952486,5.02025358,2030.3,2029.9,4.92616]
[1742394952881,0.09486358,2030.3,2030.2,4.92562]
[1742394953379,3.0,2030.8,2030.6,4.92451]
[1742394953580,5.53,2030.9,2030.6,4.92455]
[1742394953784,5.53,2030.9,2030.6,4.92464]
[1742394953979,5.53,2030.9,2030.2,4.92539]
[1742394954188,5.53,2030.9,2030.7,4.92419]
[1742394954485,5.53,2030.9,2030.8,4.92416]
[1742394954794,5.53,2030.9,2030.5,4.92467]
[1742394955009,4.92429,2030.8,2030.3,4.92514]
[1742394955212,5.53,2030.9,2030.2,4.92558]
[1742394955417,5.53,2030.9,2030.5,4.92479]
[1742394955716,4.92417,2030.8,2030.4,4.92509]
[1742394956207,4.92452,2030.7,2030.3,4.92519]
[1742394956411,1.537809,2030.7,2030.3,4.92519]
[1742394956616,7.92427,2030.8,2030.3,4.92519]
[1742394956908,4.92491,2030.5,2029.8,4.92654]
[1742394957214,9.64885687,2030.7,2030.2,4.92538]
[1742394957396,9.64885687,2030.7,2029.8,10.45756]
[1742394957598,3.0,2030.8,2030.6,4.92464]
[1742394957798,3.0,2031.0,2030.7,4.92441]
[1742394958107,9.7785015,2031.0,2030.6,4.92464]
[1742394958405,4.8547415,2031.0,2030.3,4.92536]
[1742394958633,4.72432687,2030.9,2030.4,4.925]
[1742394958792,9.64833687,2030.9,2030.5,4.9248]
[1742394958992,3.0,2030.8,2030.3,4.92516]
[1742394959194,7.92429,2030.8,2030.4,4.92503]
[1742394959590,4.92479,2030.6,2030.2,4.92556]
[1742394959799,4.92499,2030.5,2030.1,4.9257]
[1742394960000,9.64983687,2030.3,2029.9,4.92635]
[1742394960201,4.92565,2030.2,2029.9,4.92635]
[1742394960480,3.55,2030.5,2029.6,4.92691]
[1742394960780,4.92539,2030.3,2029.7,4.9267]
[1742394961002,4.9258,2030.2,2029.8,4.92646]
[1742394961211,4.92613,2030.0,2029.6,4.92686]
[1742394961516,3.0,2030.0,2029.2,10.45796]
[1742394961713,4.92646,2029.9,2029.5,4.92722]
[1742394962029,5.53,2029.9,2029.6,4.92686]
[1742394962230,5.53,2029.9,2029.7,4.92679]
[1742394962424,5.53,2029.9,2029.7,4.92672]
[1742394962631,5.53,2029.9,2029.8,4.92659]
[1742394962815,5.53,2029.9,2029.7,4.92672]
[1742394963021,10.45648,2029.9,2029.5,4.92729]
[1742394963197,6.875595,2029.9,2029.6,4.92705]
[1742394963396,11.802035,2029.9,2029.5,4.9272]
[1742394963901,6.875595,2029.9,2029.6,4.92692]
[1742394964107,5.53,2029.9,2029.8,4.92659]
[1742394964529,4.92568,2030.2,2030.0,4.92587]
[1742394964530,3.0,2030.1,2030.0,4.92587]
[1742394964906,3.0,2030.1,2029.7,4.92683]
[1742394964907,3.0,2030.1,2029.8,4.92655]
[1742394965110,3.0,2030.1,2030.0,4.9261]
[1742394965307,4.92507,2030.5,2030.1,4.92586]
[1742394965630,3.0,2030.3,2030.1,4.92572]
[1742394965830,3.0,2030.3,2029.8,4.92658]
[1742394966035,0.55,2030.2,2029.8,4.92647]
[1742394966244,4.92619,2030.0,2029.6,4.92687]
[1742394966733,3.0,2029.9,2029.6,4.92695]
[1742394967305,3.0,2029.9,2029.6,4.92697]
[1742394967552,3.0,2029.9,2029.7,4.92681]
[1742394968406,4.92668,2029.8,2029.4,4.92745]
[1742394968646,4.92661,2029.8,2029.4,4.92743]
[1742394968829,4.92661,2029.8,2029.3,4.92779]
[1742394969036,4.92692,2029.7,2029.3,4.92765]
[1742394969547,4.92716,2029.6,2029.2,4.92798]
[1742394969831,9.65116687,2029.7,2029.3,4.92764]
[1742394970001,4.92741,2029.5,2029.1,4.92819]
[1742394970207,4.92741,2029.5,2029.1,4.92815]
[1742394970535,5.531,2029.6,2029.3,4.92768]
[1742394970732,5.531,2029.6,2029.4,4.92744]
[1742394970932,5.531,2029.6,2029.3,4.92768]
[1742394970933,5.531,2029.6,2029.3,4.92779]
[1742394971135,4.92774,2029.4,2029.0,4.92853]
[1742394971314,9.65188687,2029.4,2028.5,4.92975]
[1742394971514,7.92784,2029.3,2029.0,4.92852]
[1742394971736,7.92784,2029.3,2028.9,4.92854]
[1742394971935,3.0,2029.3,2028.5,4.92954]
[1742394972123,5.531,2029.2,2029.0,4.92839]
[1742394972313,3.0,2029.4,2029.3,4.92769]
[1742394972513,3.0,2029.4,2029.2,4.92797]
[1742394972724,5.531,2029.5,2029.4,4.92756]
[1742394972935,3.32e-06,2029.3,2029.2,4.92805]
[1742394973155,4.92571,2030.2,2029.8,4.9264]
[1742394973356,4.49428927,2030.2,2029.3,3.0]
[1742394973509,5.00879029,2030.1,2029.7,4.92673]
[1742394973922,5.00879029,2030.1,2029.7,9.85343]
[1742394974133,5.00879029,2030.1,2029.4,4.92755]
[1742394974134,0.08292029,2030.1,2029.6,4.92706]
[1742394974314,0.08292029,2030.1,2029.4,4.92739]
[1742394974507,4.92621,2030.0,2029.6,4.92685]
[1742394974708,10.9440529,2030.0,2029.5,4.92725]
[1742394974943,4.92672,2029.8,2029.4,4.92742]
[1742394975151,10.53889338,2029.9,2029.5,4.92713]
[1742394975455,10.45648,2029.9,2029.5,4.92711]
[1742394975646,0.08236612,2029.8,2029.5,4.92711]
[1742394975840,5.53,2029.9,2029.6,4.92706]
[1742394976230,0.08224127,2029.8,2029.6,4.92696]
[1742394976425,4.92692,2029.7,2029.0,4.92833]
[1742394976739,4.9271,2029.6,2029.3,4.92772]
[1742394976944,3.0,2029.5,2029.2,4.92801]
[1742394977132,3.08153529,2029.5,2028.7,4.92926]
[1742394977333,4.92768,2029.4,2029.0,4.92844]
[1742394977536,13.53908529,2029.5,2029.1,4.92819]
[1742394977731,0.0811064,2029.3,2029.2,4.92805]
[1742394977931,5.53,2029.5,2029.4,4.92756]
[1742394978367,3.0,2029.7,2029.5,4.92708]
[1742394978675,10.45667,2029.8,2029.4,4.92735]
[1742394978845,10.45667,2029.8,2029.3,9.85548]
[1742394978846,4.92696,2029.7,2029.3,9.85548]
[1742394979052,4.92696,2029.7,2029.4,4.9275]
[1742394979234,4.9272,2029.6,2029.2,4.92796]
[1742394979558,9.93768069,2029.7,2029.3,4.92778]
[1742394979754,4.92711,2029.6,2029.2,4.92803]
[1742394979927,3.0,2029.4,2028.3,4.9301]
[1742394980128,4.72432687,2029.2,2028.9,4.92863]
[1742394980757,0.0805116,2029.1,2029.0,4.92843]
[1742394981157,5.53,2030.3,2029.0,0.0484971]
[1742394981356,4.55413557,2029.6,2029.5,4.92732]
[1742394981671,7.55413557,2029.8,2029.7,4.92668]
[1742394981858,3.0,2029.7,2029.6,4.92704]
[1742394982160,3.0,2029.7,2029.5,4.92721]
[1742394982461,4.55413557,2029.6,2028.8,5.53]
[1742394982623,4.55413557,2029.6,2029.4,4.92755]
[1742394982825,4.55413557,2029.6,2029.2,4.928]
[1742394983146,4.55413557,2029.6,2029.1,4.92808]
[1742394983147,4.55413557,2029.5,2029.4,4.92743]
[1742394983355,8.53,2029.6,2029.5,4.92732]
[1742394983962,8.53,2029.6,2029.3,4.92775]
[1742394984140,4.55413557,2029.5,2029.2,4.92794]
[1742394984340,4.55413557,2029.5,2029.4,4.92756]
[1742394984566,8.53,2029.6,2029.4,4.92756]
[1742394984735,4.55413557,2029.5,2029.3,4.92779]
[1742394985138,3.0,2029.4,2029.2,4.92799]
[1742394985375,4.55413557,2029.2,2029.0,4.92848]
[1742394985540,4.55413557,2029.2,2029.0,4.92834]
[1742394985975,3.0,2029.2,2029.1,4.92829]
[1742394986170,13.08413557,2029.6,2029.5,4.92732]
[1742394986343,3.0,2029.5,2029.4,4.92756]
[1742394986672,10.08413557,2029.6,2029.5,4.92732]
[1742394986874,10.08313557,2029.8,2029.7,4.92683]
[1742394987078,13.08313557,2029.8,2029.7,4.92683]
[1742394987368,17.036,2030.7,2029.4,4.92754]
[1742394987571,4.55413557,2030.2,2030.1,4.92574]
[1742394987745,10.08313557,2030.2,2030.1,4.92569]
[1742394988074,4.63092725,2030.2,2029.9,4.92622]
[1742394988248,0.07679168,2030.2,2030.1,4.92586]
[1742394988569,4.55413557,2030.5,2030.2,4.92554]
[1742394988774,4.55413557,2030.5,2030.3,4.92538]
[1742394988980,4.55413557,2030.6,2030.4,4.92513]
[1742394989271,3.0,2030.5,2030.4,4.92512]
[1742394989453,3.0,2030.5,2030.3,9.85053]
[1742394989636,4.55413557,2030.6,2030.3,9.85053]
[1742394989637,3.0,2030.6,2030.4,4.92513]
[1742394989844,4.55413557,2030.5,2030.2,4.9255]
[1742394990040,4.55413557,2030.3,2030.1,4.92585]
[1742394990278,3.0,2030.2,2030.0,4.92607]
[1742394990569,4.55413557,2030.0,2029.9,4.92635]
[1742394990739,7.55413557,2030.2,2030.0,4.92598]
[1742394990941,3.0,2030.1,2030.0,4.92598]
[1742394991273,3.0,2030.1,2029.7,4.92672]
[1742394991492,7.55413557,2030.2,2029.9,4.92635]
[1742394991643,4.55413557,2030.4,2030.1,4.92586]
[1742394991974,3.0,2030.3,2030.1,4.92586]
[1742394992178,4.55413557,2030.5,2030.0,4.9261]
[1742394992345,4.55413557,2030.6,2030.4,4.92503]
[1742394992545,4.55413557,2030.6,2030.5,4.92489]
[1742394992745,7.55413557,2030.6,2030.5,4.92489]
[1742394992977,4.55413557,2030.6,2030.5,4.92489]
[1742394993175,7.55413557,2030.6,2030.5,4.92489]
[1742394993473,3.0,2030.5,2030.4,4.92501]
[1742394993866,3.0,2030.5,2030.3,4.92534]
[1742394994062,3.0,2030.5,2029.7,4.92683]
[1742394994063,4.55413557,2030.4,2029.7,4.92683]
[1742394994269,4.55413557,2030.4,2030.2,4.92541]
[1742394994457,7.55413557,2030.4,2030.3,4.92538]
[1742394994659,4.55413557,2030.4,2030.2,4.92541]
[1742394995148,4.55413557,2030.4,2030.3,4.92538]
[1742394995745,7.55413557,2030.5,2030.4,4.92513]
[1742394996486,4.55413557,2031.0,2030.8,4.92408]
[1742394996650,4.55413557,2031.2,2030.9,4.9239]
[1742394997155,3.0,2030.9,2030.8,4.92416]
[1742394997687,3.0,2030.9,2030.3,4.92519]
[1742394997688,3.0,2030.9,2030.5,4.92488]
[1742394997981,4.55413557,2030.6,2030.3,9.85045]
[1742394998152,4.55413557,2030.4,2030.0,4.92596]
[1742394998353,3.0,2030.4,2030.3,4.92538]
[1742394998547,5.526,2030.5,2030.4,4.92513]
[1742394998761,8.526,2030.5,2030.4,4.92513]
[1742394998971,5.526,2030.5,2030.4,4.92513]
[1742394999160,8.526,2030.5,2030.4,4.92513]
[1742394999359,5.526,2030.5,2030.4,4.92513]
[1742394999762,3.0,2030.8,2030.7,4.92441]
[1742395000365,4.55413557,2031.0,2030.9,4.92392]
[1742395000779,7.55413557,2031.0,2030.9,4.92392]
[1742395001099,3.0,2030.9,2030.7,4.92434]
[1742395001399,4.55413557,2030.8,2030.5,4.92487]
[1742395001574,4.55413557,2030.6,2030.4,4.92513]
[1742395001771,7.55413557,2030.8,2030.6,4.92454]
[1742395001965,3.0,2031.0,2030.5,4.92481]
[1742395002170,3.0,2031.0,2030.9,4.92392]
[1742395002391,5.525,2031.1,2031.0,4.92368]
[1742395002593,3.0,2031.0,2030.9,4.92392]
[1742395002786,7.55413557,2031.0,2030.9,4.92392]
[1742395002982,7.61238954,2031.0,2030.9,4.92392]